Cogmind - Beta 15 @@@ ROGUE MODE // 2025.09.03 @ 01:12:38 Player: SpeltIncorrectyl Result: Destroyed by H-71 Marshal with Heavy Mass Driver Performance ------------- Evolutions (5) 2500 Regions Visited (8) 1600 Robots Destroyed (74) 370 Value Destroyed (1749) 1749 Prototype IDs (27) 540 Alien Tech Used (0) 0 Bonus (300) 300 TOTAL SCORE: 7059 Bonus ------- Aligned with FarCom 300 Cogmind --------- Core Integrity 0/1000 Matter 123/300 Energy 98/100 System Corruption 5% Temperature Cool (0) Movement Core (50) Location -5/Factory Parts ------- > --- POWER (2) -------- (None) > --- PROPULSION (5) --- (None) > --- UTILITY (7) ------ Advanced Visual Processing Unit Improved Melee Analysis Suite Improved Melee Analysis Suite Core Analyzer Core Analyzer Advanced System Shield > --- WEAPON (3) ------- (None) > --- INVENTORY (5) ---- Micro Nuclear Core Trap Reconfigurator Long-range Missile Launcher Power Sword Power Sword Peak State ------------ > --- POWER ------------ Light Fission Core Micro Fission Core > --- PROPULSION ------- Xenon Bombardment Thruster Xenon Bombardment Thruster Field Propulsion Drive Nuclear Pulse Array > --- UTILITY ---------- Medium Storage Unit Advanced Weight Redist. System Advanced Visual Processing Unit Improved Melee Analysis Suite Improved Melee Analysis Suite Core Analyzer Core Analyzer > --- WEAPON ----------- Missile Launcher Power Sword > --- INVENTORY -------- Xenon Bombardment Thruster Cooled VTOL Module Cooled VTOL Module Cooled VTOL Module Cooled VTOL Module Core Analyzer Trap Reconfigurator Long-range Missile Launcher Scythe [Rating: 72] Favorites ----------- Power Light Nuclear Core Engine Light Angular Momentum Engine Power Core Light Nuclear Core Propulsion Cooled VTOL Module Wheel Compact Wheel Flight Unit Cooled VTOL Module Utility Core Analyzer Device Advanced Weight Redist. System Storage Medium Storage Unit Processor Core Analyzer Hackware Advanced System Shield Protection Heavy Armor Plating Weapon EM Pulse Gun Energy Gun EM Pulse Gun Launcher Grenade Launcher Slashing Weapon Axe Build | -11 -10 -10 -10 -9 -8 -7 -6 -5 ------- Run | Yrd Mat Min Exi Min Mat Fac Fac Fac Slots Evolved 10 | . . . . . 4 2 2 2 Power 1 | . . . . . . . . 1 Propulsion 3 | . . . . . 2 . . 1 Utility 5 | . . . . . 2 1 2 . Weapon 1 | . . . . . . 1 . . Parts Attached 65 | 6 9 3 1 . 12 14 3 17 Power 10 | 1 2 . . . 2 1 1 3 Engine 3 | 1 1 . . . 1 . . . Core 7 | . 1 . . . 1 1 1 3 Reactor . | . . . . . . . . . Propulsion 22 | 2 2 . 1 . 2 7 . 8 Treads . | . . . . . . . . . Leg . | . . . . . . . . . Wheel 5 | 2 1 . 1 . 1 . . . Hover . | . . . . . . . . . Flight 17 | . 1 . . . 1 7 . 8 Utility 19 | 1 2 1 . . 4 6 2 3 Device 2 | . . . . . 1 1 . . Storage 3 | 1 1 . . . . 1 . . Processor 10 | . 1 1 . . . 4 2 2 Hackware 1 | . . . . . . . . 1 Protection 3 | . . . . . 3 . . . Artifact . | . . . . . . . . . Weapon 14 | 2 3 2 . . 4 . . 3 Energy Gun 5 | 2 3 . . . . . . . Energy Cannon . | . . . . . . . . . Ballistic Gun . | . . . . . . . . . Ballistic Cannon . | . . . . . . . . . Launcher 6 | . . 2 . . 3 . . 1 Special Weapon . | . . . . . . . . . Impact Weapon . | . . . . . . . . . Slashing Weapon 3 | . . . . . 1 . . 2 Piercing Weapon . | . . . . . . . . . Special Melee Weapon . | . . . . . . . . . Unidentified Prototypes 4 | . 2 . . . . 2 . . Parts Lost 22 | . 3 . . . 2 . . 17 Power 3 | . . . . . 1 . . 2 Propulsion 15 | . 2 . . . 1 . . 12 Utility 2 | . . . . . . . . 2 Weapon 2 | . 1 . . . . . . 1 Highest Loss Streak 9 | . 2 . . . 1 . . 9 To Critical Strikes 1 | . . . . . . . . 1 Average Backups 9 | 1 7 14 14 13 14 9 9 7 Power 1 | . 1 1 2 1 . 1 1 . Propulsion 4 | . 4 9 8 7 6 3 3 2 Utility 2 | . . 1 1 2 3 2 3 1 Weapon 2 | . . 3 3 3 3 2 2 2 Tool/Special . | . . . . . . . . . Unused Backups 20 | . 5 1 1 . 1 6 4 2 Power 3 | . 2 1 . . . . . . Propulsion 8 | . 2 . 1 . . 2 3 . Utility 7 | . 1 . . . 1 4 1 . Weapon 2 | . . . . . . . . 2 Tool/Special . | . . . . . . . . . Average Slot Usage (%) 82 | . 85 80 76 100 79 80 85 81 Engine 1 | . 3 . . . . 3 . . Core 7 | . 10 9 . 14 8 3 6 8 Wheel 10 | . 23 14 19 28 23 . . . Flight 13 | . . . . . . 28 26 21 Device 2 | . . . . . . 6 6 3 Storage 8 | . 14 14 14 14 9 6 6 4 Processor 19 | . 6 14 14 14 9 22 32 29 Protection 1 | . . . . . 10 . . . Energy Gun 5 | . 27 4 . . 2 . . . Launcher 6 | . . 23 28 28 13 . . 3 Slashing Weapon 3 | . . . . . 1 5 6 4 Peak Build Rating 72 | 6 10 10 12 15 28 47 55 72 Average Rating 34 | 3 9 9 10 15 23 32 54 63 On Entrance 20 | . 6 10 10 12 15 26 47 55 Naked Turns . | . . . . . . . . . Heaviest Build 52 | 12 29 31 26 31 52 52 21 35 Greatest Support 43 | 26 26 16 26 26 36 29 29 43 Greatest Overweight (x) 3 | 1 3 1 1 1 1 1 . 2 Average Overweight (x) . | . . 1 . 1 . . . . Largest Inventory Capacity 15 | 8 15 15 15 15 15 15 10 10 Average Capacity 11 | 7 9 15 15 15 15 9 10 9 Most Carried 15 | 5 14 15 15 13 15 15 10 10 Average Carried 9 | 1 7 14 14 13 14 9 9 7 Final Capacity 15 | 8 15 15 15 15 15 10 10 5 Final Carried 15 | 1 14 15 14 13 15 10 10 5 Class Distribution -------------------- 52% | Sprinter 38% | Mutant 9% | Scavenger-Mutant Dominant Class ---------------- Mutant | -10/Materials Mutant | -10/Mines Mutant | -10/Exiles Mutant | -9/Mines Scavenger-Mutant | -8/Materials Sprinter | -7/Factory Sprinter | -6/Factory Sprinter | -5/Factory Resources | -11 -10 -10 -10 -9 -8 -7 -6 -5 ----------- Run | Yrd Mat Min Exi Min Mat Fac Fac Fac Matter Collected 1405 | 260 90 130 . 40 420 230 30 205 Remotely . | . . . . . . . . . Salvage Created 2397 | . 594 23 . 82 467 432 542 257 Parts 166 | . 41 . . 4 27 24 46 24 Haulers Intercepted 3 | . 1 . . . 2 . . . Recyclers Shooed 2 | . . . . . 1 1 . . Parts Field Recycled . | . . . . . . . . . Retrieved Matter . | . . . . . . . . . Parts Self-Destructed . | . . . . . . . . . Prevented . | . . . . . . . . . Kills | -11 -10 -10 -10 -9 -8 -7 -6 -5 ------- Run | Yrd Mat Min Exi Min Mat Fac Fac Fac Combat Hostiles Destroyed 37 | . 9 7 . 3 7 . 4 7 Melee 9 | . . . . . . . 4 5 Guns 9 | . 7 . . . 2 . . . AOE 19 | . 2 7 . 3 5 . . 2 Classes Destroyed 14 | . 5 1 . . 3 2 1 2 Worker 12 | . 2 . . . 1 4 5 . Builder 9 | . 1 . . . 3 1 4 . Tunneler 1 | . . . . . . 1 . . Hauler 3 | . 1 . . . 2 . . . Recycler 7 | . . . . . 3 4 . . Operator 6 | . 1 . . . . 1 2 2 Watcher 6 | . . . . . . 2 3 1 Swarmer 2 | . . . . . . . . 2 Cutter 2 | . . . . . . . . 2 Grunt 18 | . 9 . . 3 4 . 2 . Sentry 2 | . . . . . 2 . . . Hunter 1 | . . . . . 1 . . . Programmer 5 | . . . . . . . 2 3 Assembled 7 | . . 7 . . . . . . Best Kill Streak 8 | . 3 4 . 3 4 4 8 4 Combat Bots Only 4 | . 3 4 . 3 2 . 1 4 Max Kills in Single Turn 3 | . 2 3 . 3 3 1 1 1 Gunslinging . | . . . . . . . . . Exploded 3 | . 2 3 . 3 1 . . 1 Melee 1 | . . . . . . . 1 1 Uniques/NPCs Destroyed . | . . . . . . . . . Combat | -11 -10 -10 -10 -9 -8 -7 -6 -5 -------- Run | Yrd Mat Min Exi Min Mat Fac Fac Fac Hostile Shots Fired 270 | . 45 5 . 2 31 9 16 162 Missed 94 | . 9 3 . 2 6 6 6 62 Hits 176 | . 36 2 . . 25 3 10 100 Melee 6 | . . . . . . . . 6 Projectile 170 | . 36 2 . . 25 3 10 94 AOE 1 | . . . . . . . . 1 Critical Strikes 8 | . . . . . 2 . . 6 Damage Taken 3282 | . 455 62 . . 355 21 178 2211 Core 1299 | . 120 8 . . 28 . 89 1054 Absorbed by Shields . | . . . . . . . . . Core Remaining (%) 86 | 100 . . . 48 94 100 89 . Volleys Fired 68 | . 39 5 . 1 16 . . 7 Largest 2 | . 2 2 . 2 2 . . 1 Hottest 80 | . 80 60 . 60 80 . . 43 Shots Fired 123 | . 73 10 . 2 31 . . 7 Gun 85 | . 73 . . . 12 . . . Cannon . | . . . . . . . . . Launcher 38 | . . 10 . 2 19 . . 7 Special . | . . . . . . . . . Kinetic . | . . . . . . . . . Thermal . | . . . . . . . . . Explosive 38 | . . 10 . 2 19 . . 7 Electromagnetic 85 | . 73 . . . 12 . . . Robot Hit Streak 10 | . 10 4 . 3 10 . . 2 Robot Miss Streak 4 | . 4 1 . . 2 . . 1 Penetration Max . | . . . . . . . . . Secondary Targets . | . . . . . . . . . Shots Hit Robots 144 | . 45 2 . 2 31 19 27 18 Core Hits 102 | . 24 10 . 5 26 8 17 12 Critical Kills . | . . . . . . . . . Critical Parts Destroyed . | . . . . . . . . . Critical Strikes 4 | . . . . . . . 2 2 Sever 4 | . . . . . . . 2 2 Melee Attacks 137 | . . . . . 6 38 43 50 Impact . | . . . . . . . . . Slashing 137 | . . . . . 6 38 43 50 Piercing . | . . . . . . . . . Sneak Attacks 28 | . . . . . 5 10 12 1 Combat Hostiles 3 | . . . . . . . 3 . Follow-up Attacks . | . . . . . . . . . Damage Inflicted 6569 | . 691 368 . 158 1565 1159 1610 1018 Guns 704 | . 603 . . . 101 . . . Cannons . | . . . . . . . . . Explosions 1950 | . 68 368 . 158 1085 . . 271 Melee 3895 | . . . . . 379 1159 1610 747 Ramming 20 | . 20 . . . . . . . Kinetic . | . . . . . . . . . Thermal 102 | . 68 . . . 34 . . . Explosive 1848 | . . 368 . 158 1051 . . 271 Electromagnetic 704 | . 603 . . . 101 . . . Impact . | . . . . . . . . . Slashing 3895 | . . . . . 379 1159 1610 747 Piercing . | . . . . . . . . . Highest Corruption 5 | . . . . . . . . 5 Average Corruption 2 | . . . . . . . . 2 Corruption Purged . | . . . . . . . . . Corruption Blocked . | . . . . . . . . . Effects 9 | . . . . . . . . 9 Message Errors 1 | . . . . . . . . 1 Matter Fused 3 | . . . . . . . . 3 Heat Flow Errors 2 | . . . . . . . . 2 Energy Discharges 2 | . . . . . . . . 2 Alerts 1 | . . . . . . . . 1 Overload Shots . | . . . . . . . . . Overflow Damage 592 | . 5 1 . . 75 301 157 53 Projectiles . | . . . . . . . . . Explosions 24 | . . 1 . . 12 . . 11 Melee 568 | . 5 . . . 63 301 157 42 Knockbacks . | . . . . . . . . . Impact . | . . . . . . . . . Kinetic . | . . . . . . . . . Secondary . | . . . . . . . . . Self-Inflicted Damage 166 | . 10 38 . . . . . 118 Shots 5 | . . 3 . . . . . 2 Rammed 1 | . 1 . . . . . . . Targets Rammed 1 | . 1 . . . . . . . Kicked . | . . . . . . . . . Crushed . | . . . . . . . . . Highest Temperature 328 | . 288 12 . 6 109 . . 328 Average Temperature 62 | . 84 6 . 4 39 . . 50 Received Heat Transfer 688 | . 246 . . . 144 6 54 238 Effects 2 | . . . . . . . . 2 Shutdowns 1 | . . . . . . . . 1 Energy Bleed 1 | . . . . . . . . 1 Siege Activations . | . . . . . . . . . Martial Activations . | . . . . . . . . . Shielding Activations . | . . . . . . . . . Robots Disrupted . | . . . . . . . . . Combat Hostiles . | . . . . . . . . . Robots Corrupted 1 | . 1 . . . . . . . Combat Hostiles . | . . . . . . . . . Parts Fried 3 | . 2 . . . 1 . . . Impact Corruptions 1 | . 1 . . . . . . . Robots Melted . | . . . . . . . . . Combat Hostiles . | . . . . . . . . . Parts Melted . | . . . . . . . . . Heat Transferred 50 | . . . . . 50 . . . Parts Sabotaged . | . . . . . . . . . Parts Stolen . | . . . . . . . . . Parts Stripped . | . . . . . . . . . Power Chain Reactions 2 | . 1 . . . 1 . . . Alert | -11 -10 -10 -10 -9 -8 -7 -6 -5 ------- Run | Yrd Mat Min Exi Min Mat Fac Fac Fac Maximum Alert Level 2 | . . . . . . . . 2 Low Security (%) 95 | 100 100 100 . 100 100 100 100 76 Level 1 2 | . . . . . . . . 9 Level 2 2 | . . . . . . . . 13 Level 3 . | . . . . . . . . . Level 4 . | . . . . . . . . . Level 5 . | . . . . . . . . . High Security . | . . . . . . . . . Max Security . | . . . . . . . . . Peak Influence 456 | . 84 18 . 80 114 54 91 456 Initial 41 | . . . . . 27 28 2 41 Average 45 | . 21 3 . 59 56 19 26 118 Influence Increases 2236 | . 270 65 . 80 324 209 408 880 Destroy 0b10 Robot/C 640 | . 180 . . 60 140 . 120 140 Destroy 0b10 Robot/NC 225 | . 25 . . . 45 65 75 15 Destroy Leader 148 | . 42 . . 10 34 4 26 32 Trap Triggered on 0b10 10 | . . . . . . 10 . . Successful Hack 114 | . 21 . . . 12 9 52 20 Disable Machine 30 | . . . . . . 15 . 15 Destroy Structure 349 | . 2 65 . 10 93 16 15 148 Partial Spotted 150 | . . . . . . 60 30 60 Lose Combat Pursuer 570 | . . . . . . 30 90 450 Influence Decreases 1807 | . 270 65 . 10 330 267 329 536 Entered New Map 127 | . . . . . 43 36 4 44 Time Decay 1441 | . 240 65 . 10 267 231 305 323 Lost Part 219 | . 30 . . . 20 . . 169 Lost Ally 20 | . . . . . . . 20 . Squads Dispatched 27 | . 1 . . . . 4 12 10 Investigation 12 | . 1 . . . . 1 5 5 Extermination 6 | . . . . . . 2 3 1 Reinforcement 6 | . . . . . . 1 1 4 Assault . | . . . . . . . . . Garrison 3 | . . . . . . . 3 . Intercept . | . . . . . . . . . Searches Triggered . | . . . . . . . . . Construction Impeded . | . . . . . . . . . Haulers Reinforced . | . . . . . . . . . Active Scanning Responses . | . . . . . . . . . Cargo Convoy Interrupts . | . . . . . . . . . Stealth | -11 -10 -10 -10 -9 -8 -7 -6 -5 --------- Run | Yrd Mat Min Exi Min Mat Fac Fac Fac Distress Signals 3 | . . . . . . . 1 2 Communications Jammed . | . . . . . . . . . Distress Signals . | . . . . . . . . . Times Spotted 107 | . 16 8 . 3 9 5 16 50 Peak Tracking Total 13 | . 6 5 . 3 3 2 4 13 Tactical Retreats 17 | . . 1 . . . 2 4 10 Traps | -11 -10 -10 -10 -9 -8 -7 -6 -5 ------- Run | Yrd Mat Min Exi Min Mat Fac Fac Fac Traps Triggered 8 | . . . . . . 3 1 4 Indirectly . | . . . . . . . . . Trap Hack Attempts . | . . . . . . . . . Triggered . | . . . . . . . . . Disarmed . | . . . . . . . . . Reprogrammed . | . . . . . . . . . Reused 1 | . . . . . . 1 . . Traps Reconfigurated 2 | . . . . . . 2 . . Traps Extracted . | . . . . . . . . . Installed . | . . . . . . . . . Triggered 1 | . . . . . . 1 . . Machines | -11 -10 -10 -10 -9 -8 -7 -6 -5 ---------- Run | Yrd Mat Min Exi Min Mat Fac Fac Fac Machines Disabled 2 | . . . . . . 1 . 1 Max in Single Turn 1 | . . . . . . 1 . 1 Garrison Access 1 | . . . . . . . 1 . Machines Repaired . | . . . . . . . . . Machines Dismantled . | . . . . . . . . . Machines Sabotaged . | . . . . . . . . . Overloaded Fab Kills . | . . . . . . . . . Hacking | -11 -10 -10 -10 -9 -8 -7 -6 -5 --------- Run | Yrd Mat Min Exi Min Mat Fac Fac Fac Machines Accessed 33 | . 6 . 1 . 4 2 13 7 Terminals 20 | . 6 . . . 3 1 7 3 Fabricators 8 | . . . . . . 1 3 4 Repair Stations . | . . . . . . . . . Recycling Units . | . . . . . . . . . Scanalyzers 3 | . . . . . 1 . 2 . Garrison Access 1 | . . . . . . . 1 . Total Hacks 81 | . 13 . 1 . 13 7 32 15 Successful 34 | . 5 . 1 . 6 3 14 5 Failed 47 | . 8 . . . 7 4 18 10 Catastrophic 12 | . 2 . . . . 1 5 4 Database Lockouts . | . . . . . . . . . Manual 38 | . 11 . 1 . 7 4 10 5 Terminals 45 | . 13 . . . 7 4 16 5 Fabricators 20 | . . . . . . 3 7 10 Repair Stations . | . . . . . . . . . Recycling Units . | . . . . . . . . . Scanalyzers 14 | . . . . . 6 . 8 . Garrison Access 1 | . . . . . . . 1 . Terminal Hacks 15 | . 5 . 1 . 2 2 4 1 Part Schematic 3 | . 2 . . . . . 1 . Level Access Points 2 | . . . . . . 1 1 . Branch Access Points 1 | . 1 . . . . . . . Terminal Index 6 | . 1 . . . 2 1 1 1 Assault Status 1 | . . . . . . . 1 . Hauler Manifests 1 | . 1 . . . . . . . Proto ID Catalog 1 | . . . 1 . . . . . Fabricator Hacks 9 | . . . . . . 1 4 4 Network Status 3 | . . . . . . 1 1 1 Load Schematic 3 | . . . . . . . 1 2 Build 3 | . . . . . . . 2 1 Repair Station Hacks . | . . . . . . . . . Recycling Unit Hacks . | . . . . . . . . . Scanalyzer 9 | . . . . . 4 . 5 . Insert Component 4 | . . . . . 2 . 2 . Analyze 5 | . . . . . 2 . 3 . Garrison Access Hacks 1 | . . . . . . . 1 . Seal Access 1 | . . . . . . . 1 . Unauthorized Hacks . | . . . . . . . . . Terminals . | . . . . . . . . . Fabricators . | . . . . . . . . . Repair Stations . | . . . . . . . . . Recycling Units . | . . . . . . . . . Scanalyzers . | . . . . . . . . . Garrison Access . | . . . . . . . . . Data Cores Recovered 4 | . 1 . . . . 1 1 1 Used 3 | . . . . . . 1 1 1 Hacking Detections 29 | . 5 . . . 4 2 12 6 Full Trace Events 10 | . 1 . . . . 1 4 4 Feedback Events . | . . . . . . . . . Feedback Blocked . | . . . . . . . . . Robot Schematics Acquired . | . . . . . . . . . Robots Built 2 | . . . . . . . 2 . Authchips . | . . . . . . . . . Time 152 | . . . . . . . 152 . Total Robot Build Rating 10 | . . . . . . . 10 . Part Schematics Acquired 7 | . 2 . . . 2 . 3 . Parts Built 4 | . . . . . . . 2 2 Authchips . | . . . . . . . . . Time 84 | . . . . . . . 42 42 Total Part Build Rating 16 | . . . . . . . 8 8 Parts Repaired . | . . . . . . . . . Time . | . . . . . . . . . Parts Recycled . | . . . . . . . . . Recycled Matter . | . . . . . . . . . Retrieved Matter . | . . . . . . . . . Retrieved Components . | . . . . . . . . . Parts Scanalyzed 4 | . . . . . 2 . 2 . Part Schematics Acquired 4 | . . . . . 2 . 2 . Parts Damaged . | . . . . . . . . . Bothacking | -11 -10 -10 -10 -9 -8 -7 -6 -5 ------------ Run | Yrd Mat Min Exi Min Mat Fac Fac Fac Used RIF Installer . | . . . . . . . . . Robots Hacked . | . . . . . . . . . Non-combat . | . . . . . . . . . Combat . | . . . . . . . . . Robot Hacks Applied . | . . . . . . . . . Relay Couplers Released . | . . . . . . . . . Fabnet Peak Effective % . | . . . . . . . . . Robots Rewired . | . . . . . . . . . Allies Hacked . | . . . . . . . . . Hacks Repelled . | . . . . . . . . . Allies | -11 -10 -10 -10 -9 -8 -7 -6 -5 -------- Run | Yrd Mat Min Exi Min Mat Fac Fac Fac Total Allies 2 | . . . . . . . 2 . Largest Group 2 | . . . . . . . 2 . Highest-Rated Group 82 | . . . . . . . 82 . Highest-Rated Ally 41 | . . . . . . . 41 . Total Orders . | . . . . . . . . . Ally Attacks 14 | . . . . . . . 14 . Total Damage 637 | . . . . . . . 637 . Kills 3 | . . . . . . . 3 . Allies Corrupted . | . . . . . . . . . Allies Melted . | . . . . . . . . . Intel | -11 -10 -10 -10 -9 -8 -7 -6 -5 ------- Run | Yrd Mat Min Exi Min Mat Fac Fac Fac Active Infowar (turns) 2164 | . . . . . . 532 853 779 Optics 2164 | . . . . . . 532 853 779 Robot Analysis Total . | . . . . . . . . . Derelict Logs Recovered 1 | . . 1 . . . . . . Drone Launches . | . . . . . . . . . Drone Recoveries . | . . . . . . . . . Exploration | -11 -10 -10 -10 -9 -8 -7 -6 -5 ------------- Run | Yrd Mat Min Exi Min Mat Fac Fac Fac Turns Passed 4072 | 48 765 244 222 27 580 554 853 779 Spaces Moved 5746 | 48 604 193 213 22 433 1129 1860 1244 Core 77 | 22 3 . . . . . . 52 Treads . | . . . . . . . . . Legs . | . . . . . . . . . Wheels 1492 | 26 601 193 213 22 433 4 . . Hover . | . . . . . . . . . Flight 4177 | . . . . . . 1125 1860 1192 Fastest Speed 6 | 50 90 115 90 105 86 26 26 6 Average Speed 46 | 74 97 115 103 105 100 26 26 30 Slowest Speed 200 | 100 200 115 115 105 105 105 26 162 Overloaded Moves 55 | . . . . . . . . 55 Propulsion Burnouts . | . . . . . . . . . Robots Hopped 9 | . . . . . . 1 . 8 Potential Cave-ins . | . . . . . . . . . Cave-ins Triggered 1 | . . . . . . . . 1 Exploration Rate (%) 37 | 4 74 48 62 8 36 34 42 30 Regions Visited 8 Branch Regions 3 Pre-discovered Areas 1 | . . 1 . . . . . . Known Exits Taken 3 | . 1 . . . . 1 1 . Unknown Exits Taken 5 | 1 . 1 1 1 1 . . . Scrap Searched 1 | . . 1 . . . . . . Spaces Dug 69 | . . . . . . 16 15 38 Terrain Destroyed 379 | . 2 75 . 10 136 16 15 125 Melee 58 | . . . . . . 16 15 27 Projectile . | . . . . . . . . . AOE 321 | . 2 75 . 10 136 . . 98 Terrain Rammed . | . . . . . . . . . Walls Destroyed . | . . . . . . . . . Machines Disabled . | . . . . . . . . . Actions | -11 -10 -10 -10 -9 -8 -7 -6 -5 --------- Run | Yrd Mat Min Exi Min Mat Fac Fac Fac Total 6791 | 59 714 207 215 23 538 1326 2155 1554 Wait 533 | . 20 . . . 32 53 237 191 Move 5721 | 47 603 192 212 21 432 1126 1859 1229 Hop 8 | . . . . . . 1 . 7 Pick Up 100 | 6 27 2 1 . 14 23 7 20 Fast Attach 18 | 1 2 1 . . 2 8 1 3 Attach 73 | 5 5 2 1 1 14 14 2 29 Detach 19 | . 1 2 . . 6 4 . 6 Swap 11 | . 3 . . . 5 1 . 2 Drop 66 | . 13 3 1 . 11 22 6 10 Fire 68 | . 39 5 . 1 16 . . 7 Melee 137 | . . . . . 6 38 43 50 Ram 1 | . 1 . . . . . . . Kick . | . . . . . . . . . Crush . | . . . . . . . . . Escape Stasis 36 | . . . . . . 36 . . Rewire . | . . . . . . . . . Trap . | . . . . . . . . . Miscellaneous . | . . . . . . . . . Route ------- -11/Scrapyard -10/Materials (discovered 2 exits: *Mat / *Min) -10/Mines (discovered 2 exits: *Mat / *Exi) -10/Exiles -9/Mines -8/Materials -7/Factory (discovered 4 exits: *Fac x4) -6/Factory (discovered 4 exits: *Fac x4) -5/Factory History --------- Turn | Location | Event 10 | -11/Scrapyard | Discovered new exit (range 15) 49 | -11/Scrapyard | Entered Materials 197 | -10/Materials | Identified exit to Mines 306 | -10/Materials | Build established: Mutant 557 | -10/Materials | Discovered new exit (range 13) 627 | -10/Materials | Identified exit to Materials 814 | -10/Materials | Entered Mines 827 | -10/Mines | Met a Derelict bent on vengeance 841 | -10/Mines | Assembled infested the area 888 | -10/Mines | Learned location of Storage (-7) 956 | -10/Mines | Core integrity fell below 50% 1017 | -10/Mines | Discovered exit to Materials (range 9) 1053 | -10/Mines | Deemed a non-threat by the Exiles lab entrance 1054 | -10/Mines | Discovered new exit (range 5) 1058 | -10/Mines | Entered Exiles 1085 | -10/Exiles | Met 8R-AWN 1106 | -10/Exiles | Met EX-HEX 1137 | -10/Exiles | Met EX-BIN 1152 | -10/Exiles | Aligned with FarCom system 1153 | -10/Exiles | Given EX-Vault access code 1179 | -10/Exiles | Opened EX-Vault 1191 | -10/Exiles | Found Trap Reconfigurator 1208 | -10/Exiles | Warned to stay clear of 0b10 Research branches 1233 | -10/Exiles | Met EX-DEC 1270 | -10/Exiles | Discovered new exit (range 14) 1280 | -10/Exiles | Left Exiles lab with Trap Reconfigurator 1280 | -10/Exiles | Entered Mines 1284 | -9/Mines | Discovered new exit (range 13) 1307 | -9/Mines | Entered Materials 1307 | -8/Materials | Evolved 4 slots: Propulsion x2, Utility x2 1619 | -8/Materials | Build established: Scavenger-Mutant 1829 | -8/Materials | Discovered new exit (range 9) 1887 | -8/Materials | Entered Factory 1887 | -7/Factory | Evolved 2 slots: Utility x1, Weapon x1 2106 | -7/Factory | Identified exit to Factory 2181 | -7/Factory | Build established: Sprinter 2441 | -7/Factory | Entered another Factory area 2441 | -6/Factory | Evolved 2 slots: Utility x2 2486 | -6/Factory | Spotted B-75 Beast 2647 | -6/Factory | Fabricated H-66 Slayer? 2658 | -6/Factory | Garrison activated, responded to threat 2888 | -6/Factory | Fabricated Xenon Bombardment Thruster? 3214 | -6/Factory | Identified exit to Factory 3294 | -6/Factory | Entered another Factory area 3294 | -5/Factory | Evolved 2 slots: Power x1, Propulsion x1 3620 | -5/Factory | Fabricated Imp. Melee Analysis Suite? 3692 | -5/Factory | Crushed by falling debris 3865 | -5/Factory | Lost 3 parts (2n1w) 3968 | -5/Factory | Lost 9 parts (1p7n1u) 3990 | -5/Factory | Spotted B-75 Beast 4049 | -5/Factory | Core integrity fell below 50% 4059 | -5/Factory | Core integrity fell below 20% 4073 | -5/Factory | Destroyed by H-71 Marshal with Heavy Mass Driver Last Messages --------------- investigation squad. Penetrated by Slug. Critical hit (Destroy). Imp. Surge Thruster destroyed. K-01 Serf destroyed. Penetrated by Slug. Critical hit (Burn: +37). Cld. VTOL Module destroyed. Dropped Mic. Nuclear Core. Penetrated by Slug. Connecting with Terminal... ALERT: Suspicious activity at Terminal F021. Dispatching Investigation squad. Penetrated by Slug. Core Analyzer destroyed. System corrupted: Matter fused (-8). Critical hit (Burn: +50). Slug penetrates Wall. Penetrated by Slug. K-01 Serf collects debris. Map ----- +----------------------------------------------------+ | | | | | | | | | | | ??????????????????????????####################???? | | ??????????????????????????# #???? | | ??????????????????????????# #???? | | ??????????????????????????#"" #???? | | ??????????????????????????#"" """ """ #???? | | ??????????????????????????#"T """"" """"" #??## | | ??????????????????????????#"" """"" """"" #??# | | ??????????????????????????#"" #??# | | ??????????????????????????# #??# | | ??????????????????????????##########/#########??# | | ???????????????????????########## gg #?????### | | ???????????????????????# g ####### | | ???????????????????????# " | | ???????????????????????# "T Y % | | ???????????????????????# | | ???????????????????????# ####### | | ???????????????????????# #### #?????## | | ???????????????????????# #??####+####??????# | | ???????????????????????# #???? ????????# | | ???????????????????????# % #?? ??????# | | ???????????????????????# @ #?# #?????# | | ???????????????????????# #?# """ #?????# | | ???????????????????????# #?# """ " " #?????# | | ???????????????????????# #?# """ "T" #?????# | | ???????????????????????# #?# """ #?????# | | ??????????????????????? ?# ! #?????# | | ?????????????????????? ################# | | ?????????????????????? | | ????????????????????? H ## | | ???????????????????? ## """" """" """" | | ???????????????????? ## """" """" """" | | ??????????????????? ## """" """" """" | | ???????????????????### ## | | ?????????????????????# ## """" """" """" | | ?????????????????????############ """" """" """" | | ?????????????????????????????#### """" """" """" | | ?????????????????????????????? | | ?????????????????????????????? """" """" **! | | ??????????????????????????????? """" """" ** | | ???????????????????????????????? """" """" *! | | ????????????????????????????????# | | ????????????????????????????????# | | ????????????????????????????????? ## | | ?????????????????????????????????## ########### | | ??????????????????????????????????# # ! # | +----------------------------------------------------+ Best States ------------- Heat Dissipation 40 Energy Generation 31 Energy Capacity 300 Matter Stores 300 Matter Capacity 300 Sight Range 20 Terrain Scan Density 10 Additional Mass Support 9 Armor Coverage 600 Resistance: EM 15 Evasion (%) 65 Melee Accuracy 12 Launcher Accuracy 20 Target Analysis 5 Core Analysis 9 Defensive Hacking 14 Item Schematics ----------------- Sml. Storage Unit | -10/Materials | Hacked Med. Storage Unit | -10/Materials | Hacked Missile Launcher | -8/Materials | Scanalyzed VTOL Module | -8/Materials | Scanalyzed Xenon Bombardment Thruster | -6/Factory | Scanalyzed Imp. Melee Analysis Suite | -6/Factory | Scanalyzed Scythe | -6/Factory | Hacked Robot Schematics ------------------ None Fabricated ------------ H-66 Slayer | x2 | -6/Factory | Preloaded Xenon Bombardment Thruster | x2 | -6/Factory Imp. Melee Analysis Suite | x2 | -5/Factory Repaired ---------- Nothing Alien Tech Used ----------------- None Achievements -------------- Speed Demon Whoosh! Challenges ------------ None Game ------ Seed VisualMiniCannon Manual? 0 Play Time 01:19:55 Cumulative 44.0 hours Start 2025.09.02 @ 23:53:08 End 2025.09.03 @ 01:12:38 Sessions 1 Manual Loads 0 Difficulty Rogue Special Mode None Game No. 58 Rogue 48 Adventurer 10 Explorer 0 Win Type - Total 0 Types 0/0/0/0/0/0/0/0/0/0 Lore% 16 Gallery% 27 Achievement% 33 Wizard Run 0 Options --------- Layout 1 ASCII 0 Keyboard 0 Movement Arrows Keybinds 0 Fullscreen 1 Font 24/Smallcaps Map View 50x35 Zoom Use 0% Tactical HUD 0 Map Filters NONE Filters NONE Steam 1 RUN: 7eab8d22-b9dc-4f1f-b7ff-048be2bd2cc0